fUST/lending_fUST_20250702
["ID","MTS","AMOUNT","RATE_DAILY","PERIOD"]
[368977121,1751419850615,-2132.58,0.00019202,2]
[368977122,1751419850625,-945.38,0.00019202,2]
[368977123,1751419850635,-460.0,0.00019202,2]
[368977124,1751419850644,-460.0,0.00019202,2]
[368977125,1751419850653,-460.0,0.00019202,2]
[368977126,1751419850663,-691.48,0.00019202,2]
[368977127,1751419850673,-584.87,0.00019202,2]
[368977128,1751419850685,-460.0,0.00019202,2]
[368977129,1751419850695,-460.0,0.00019202,2]
[368977130,1751419850706,-460.0,0.00019202,2]
[368977131,1751419850717,-460.0,0.00019202,2]
[368977132,1751419850728,-460.0,0.00019202,2]
[368977133,1751419850738,-1343.1,0.00019202,2]
[368977134,1751419850748,-600.16,0.00019202,2]
[368977135,1751419850759,-466.54,0.00019202,2]
[368977136,1751419850770,-365.72,0.00019202,2]
[368977137,1751419850779,-460.0,0.00019202,2]
[368977138,1751419850789,-460.0,0.00019202,2]
[368977139,1751419850798,-1350.1,0.00019202,2]
[368977140,1751419850808,-1312.86,0.00019202,2]
[368977141,1751419850817,-460.0,0.00019202,2]
[368977142,1751419850827,-460.0,0.00019202,2]
[368977143,1751419850837,-683.47,0.00019202,2]
[368977144,1751419850847,-531.79,0.00019202,2]
[368977145,1751419850856,-1091.09586195,0.00019279,2]
[368977146,1751419850866,-402.86077763,0.00019323,2]
[368977147,1751419850875,-48066.52679625,0.00019329,2]
[368977148,1751419850885,-460.0,0.00019405,2]
[368977149,1751419850894,-460.0,0.00019405,2]
[368977150,1751419850904,-225.32449672,0.00019405,2]
[368977151,1751419850913,-496.01,0.00019405,2]
[368977152,1751419850922,-548.16,0.00019476,2]
[368977153,1751419850932,-460.0,0.00019476,2]
[368977154,1751419850941,-1243.39,0.00019476,2]
[368977155,1751419850950,-460.0,0.00019476,2]
[368977156,1751419850959,-523.15,0.00019476,2]
[368977157,1751419850969,-1425.96,0.00019476,2]
[368977158,1751419850979,-460.0,0.00019476,2]
[368977159,1751419850988,-460.0,0.00019476,2]
[368977160,1751419850998,-513.00843225,0.00019476,2]
[368977161,1751419851008,-460.0,0.00019476,2]
[368977162,1751419851017,-163.09,0.00019476,2]
[368977163,1751419851027,-824.02,0.00019476,2]
[368977164,1751419851037,-460.0,0.00019476,2]
[368977165,1751419851046,-543.37338779,0.00019476,2]
[368977166,1751419851056,-553.06,0.00019476,2]
[368977167,1751419851065,-816.83,0.00019476,2]
[368977168,1751419851075,-460.0,0.00019476,2]
[368977169,1751419851085,-169.15,0.00019476,2]
[368977170,1751419851095,-564.98,0.00019476,2]
[368977171,1751419851104,-460.0,0.00019476,2]
[368977172,1751419851114,-460.0,0.00019476,2]
[368977173,1751419851123,-282.94,0.00019476,2]
[368977174,1751419851132,-460.0,0.00019476,2]
[368977175,1751419851141,-460.0,0.00019476,2]
[368977176,1751419851151,-2132.58,0.00019476,2]
[368977177,1751419851160,-945.38,0.00019476,2]
[368977178,1751419851169,-247.67033073,0.00019476,2]
[368977179,1751419851179,-460.0,0.00019476,2]
[368977180,1751419851188,-460.0,0.00019476,2]
[368977181,1751419851198,-691.48,0.00019476,2]
[368977182,1751419851207,-584.87,0.00019476,2]
[368977183,1751419851216,-460.0,0.00019476,2]
[368977184,1751419851226,-460.0,0.00019476,2]
[368977185,1751419851236,-460.0,0.00019476,2]
[368977186,1751419851245,-460.0,0.00019476,2]
[368977187,1751419851255,-460.0,0.00019476,2]
[368977188,1751419851264,-1343.1,0.00019476,2]
[368977189,1751419851273,-600.16,0.00019476,2]
[368977190,1751419851282,-466.54,0.00019476,2]
[368977191,1751419851292,-460.0,0.00019476,2]
[368977192,1751419851301,-460.0,0.00019476,2]
[368977193,1751419851311,-1350.1,0.00019476,2]
[368977194,1751419851320,-1312.86,0.00019476,2]
[368977195,1751419851329,-460.0,0.00019476,2]
[368977196,1751419851339,-460.0,0.00019476,2]
[368977197,1751419851348,-683.47,0.00019476,2]
[368977198,1751419851357,-531.79,0.00019476,2]
[368977199,1751419851366,-1091.09586195,0.00019555,2]
[368977200,1751419851375,-208.7,0.00019679,2]
[368977201,1751419851384,-460.0,0.00019679,2]
[368977202,1751419851393,-496.01,0.00019679,2]
[368977203,1751419851402,-460.0,0.0001975,2]
[368977204,1751419851411,-1243.39,0.0001975,2]
[368977205,1751419851420,-460.0,0.0001975,2]
[368977206,1751419851429,-523.15,0.0001975,2]
[368977207,1751419851439,-1425.96,0.0001975,2]
[368977208,1751419851448,-460.0,0.0001975,2]
[368977209,1751419851457,-460.0,0.0001975,2]
[368977210,1751419851466,-460.0,0.0001975,2]
[368977211,1751419851475,-824.02,0.0001975,2]
[368977212,1751419851484,-460.0,0.0001975,2]
[368977213,1751419851494,-816.83,0.0001975,2]
[368977214,1751419851503,-460.0,0.0001975,2]
[368977215,1751419851513,-564.98,0.0001975,2]
[368977216,1751419851522,-533.08,0.0001975,2]
[368977217,1751419851532,-460.0,0.0001975,2]
[368977218,1751419851541,-454.5884561,0.0001975,2]
[368977219,1751419851550,-460.0,0.0001975,2]
[368977220,1751419851560,-2132.58,0.0001975,2]
[368977221,1751419851570,-945.38,0.0001975,2]
[368977222,1751419851579,-556.33,0.0001975,2]
[368977223,1751419851588,-460.0,0.0001975,2]
[368977224,1751419851602,-691.48,0.0001975,2]
[368977225,1751419851611,-584.87,0.0001975,2]
[368977226,1751419851620,-460.0,0.0001975,2]
[368977227,1751419851629,-460.0,0.0001975,2]
[368977228,1751419851639,-460.0,0.0001975,2]
[368977229,1751419851648,-460.0,0.0001975,2]
[368977230,1751419851657,-460.0,0.0001975,2]
[368977231,1751419851667,-1343.1,0.0001975,2]
[368977232,1751419851678,-600.16,0.0001975,2]
[368977233,1751419851688,-466.54,0.0001975,2]
[368977234,1751419851697,-460.0,0.0001975,2]
[368977235,1751419851707,-460.0,0.0001975,2]
[368977236,1751419851716,-1350.1,0.0001975,2]
[368977237,1751419851726,-1312.86,0.0001975,2]
[368977238,1751419851735,-460.0,0.0001975,2]
[368977239,1751419851744,-460.0,0.0001975,2]
[368977240,1751419851754,-683.47,0.0001975,2]
[368977241,1751419851765,-531.79,0.0001975,2]
[368977242,1751419851774,-1091.09586195,0.00019831,2]
[368977243,1751419851784,-460.0,0.00019953,2]
[368977244,1751419851794,-496.01,0.00019953,2]
[368977245,1751419851803,-7777.0,0.0002,7]
[368977246,1751419851814,-460.0,0.00020024,2]
[368977247,1751419851823,-1243.39,0.00020024,2]
[368977248,1751419851833,-460.0,0.00020024,2]
[368977249,1751419851843,-523.15,0.00020024,2]
[368977250,1751419851852,-1425.96,0.00020024,2]
[368977251,1751419851862,-460.0,0.00020024,2]
[368977252,1751419851871,-460.0,0.00020024,2]
[368977253,1751419851881,-320.31860826,0.00020024,2]
[368977254,1751419851891,-824.02,0.00020024,2]
[368977255,1751419851901,-384.25,0.00020024,2]
[368977256,1751419851910,-816.83,0.00020024,2]
[368977257,1751419851920,-286.5,0.00020024,2]
[368977258,1751419851930,-564.98,0.00020024,2]
[368977259,1751419851940,-460.0,0.00020024,2]
[368977260,1751419851950,-2132.58,0.00020024,2]
[368977261,1751419851960,-945.38,0.00020024,2]
[368977262,1751419851970,-460.0,0.00020024,2]
[368977263,1751419851980,-691.48,0.00020024,2]
[368977264,1751419851990,-584.87,0.00020024,2]
[368977265,1751419852000,-460.0,0.00020024,2]
[368977266,1751419852012,-460.0,0.00020024,2]
[368977267,1751419852022,-460.0,0.00020024,2]
[368977268,1751419852033,-460.0,0.00020024,2]
[368977269,1751419852044,-460.0,0.00020024,2]
[368977270,1751419852054,-1343.1,0.00020024,2]
[368977271,1751419852064,-600.16,0.00020024,2]
[368977272,1751419852074,-466.54,0.00020024,2]
[368977273,1751419852084,-460.0,0.00020024,2]
[368977274,1751419852094,-297.8880217,0.00020024,2]
[368977275,1751419852103,-1350.1,0.00020024,2]
[368977276,1751419852113,-1312.86,0.00020024,2]
[368977277,1751419852122,-460.0,0.00020024,2]
[368977278,1751419852132,-460.0,0.00020024,2]
[368977279,1751419852141,-683.47,0.00020024,2]
[368977280,1751419852151,-531.79,0.00020024,2]
[368977281,1751419852159,-1091.09586195,0.00020107,2]
[368977282,1751419852169,-587.0,0.00020168,2]
[368977283,1751419852178,-609.34,0.00020227,2]
[368977284,1751419852188,-496.01,0.00020227,2]
[368977285,1751419852197,-460.0,0.00020298,2]
[368977286,1751419852207,-1243.39,0.00020298,2]
[368977287,1751419852216,-438.96,0.00020298,2]
[368977288,1751419852226,-523.15,0.00020298,2]
[368977289,1751419852235,-1425.96,0.00020298,2]
[368977290,1751419852245,-460.0,0.00020298,2]
[368977291,1751419852255,-460.0,0.00020298,2]
[368977292,1751419852266,-824.02,0.00020298,2]
[368977293,1751419852276,-816.83,0.00020298,2]
[368977294,1751419852285,-564.98,0.00020298,2]
[368977295,1751419852295,-168.57,0.00020298,2]
[368977296,1751419852305,-2132.58,0.00020298,2]
[368977297,1751419852314,-945.38,0.00020298,2]
[368977298,1751419852324,-460.0,0.00020298,2]
[368977299,1751419852333,-691.48,0.00020298,2]
[368977300,1751419852342,-584.87,0.00020298,2]
[368977301,1751419852352,-460.0,0.00020298,2]
[368977302,1751419852361,-344.26,0.00020298,2]
[368977303,1751419852370,-460.0,0.00020298,2]
[368977304,1751419852380,-460.0,0.00020298,2]
[368977305,1751419852390,-1343.1,0.00020298,2]
[368977306,1751419852399,-600.16,0.00020298,2]
[368977307,1751419852409,-466.54,0.00020298,2]
[368977308,1751419852417,-460.0,0.00020298,2]
[368977309,1751419852427,-1350.1,0.00020298,2]
[368977310,1751419852436,-1312.86,0.00020298,2]
[368977311,1751419852446,-460.0,0.00020298,2]
[368977312,1751419852455,-460.0,0.00020298,2]
[368977313,1751419852465,-683.47,0.00020298,2]
[368977314,1751419852475,-531.79,0.00020298,2]
[368977315,1751419852484,-410.9722303,0.00020361,2]
[368977316,1751419852495,-1913.0,0.00020369,2]
[368977317,1751419852504,-1091.09586195,0.00020383,3]
[368977318,1751419852513,-1553.02571943,0.00020455,2]
[368977319,1751419852523,-496.01,0.00020501,2]
[368977320,1751419852532,-460.0,0.00020572,2]
[368977321,1751419852541,-1243.39,0.00020572,2]
[368977322,1751419852551,-523.15,0.00020572,2]
[368977323,1751419852560,-1425.96,0.00020572,2]
[368977324,1751419852569,-168.34261974,0.00020572,2]
[368977325,1751419852677,-460.0,0.00020572,2]
[368977326,1751419852689,-824.02,0.00020572,2]
[368977327,1751419852699,-816.83,0.00020572,2]
[368977328,1751419852710,-564.98,0.00020572,2]
[368977329,1751419852720,-2132.58,0.00020572,2]
[368977330,1751419852729,-945.38,0.00020572,2]
[368977331,1751419852738,-460.0,0.00020572,2]
[368977332,1751419852748,-691.48,0.00020572,2]
[368977333,1751419852758,-460.0,0.00020572,2]
[368977334,1751419852768,-584.87,0.00020572,2]
[368977335,1751419852778,-460.0,0.00020572,2]
[368977336,1751419852788,-460.0,0.00020572,2]
[368977337,1751419852797,-1343.1,0.00020572,2]
[368977338,1751419852808,-600.16,0.00020572,2]
[368977339,1751419852818,-466.54,0.00020572,2]
[368977340,1751419852828,-460.0,0.00020572,2]
[368977341,1751419852838,-1350.1,0.00020572,2]
[368977342,1751419852847,-1312.86,0.00020572,2]
[368977343,1751419852859,-460.0,0.00020572,2]
[368977344,1751419852868,-460.0,0.00020572,2]
[368977345,1751419852878,-683.47,0.00020572,2]
[368977346,1751419852888,-531.79,0.00020572,2]
[368977347,1751419852898,-524.26,0.000206,2]
[368977348,1751419852908,-1091.09586195,0.00020659,3]
[368977349,1751419852917,-277.384,0.00020662,2]
[368977350,1751419852928,-496.01,0.00020775,2]
[368977351,1751419852938,-460.0,0.00020846,2]
[368977352,1751419852947,-1243.39,0.00020846,2]
[368977353,1751419852956,-523.15,0.00020846,2]
[368977354,1751419852966,-1425.96,0.00020846,2]
[368977355,1751419852976,-460.0,0.00020846,2]
[368977356,1751419852986,-824.02,0.00020846,2]
[368977357,1751419852996,-816.83,0.00020846,2]
[368977358,1751419853006,-564.98,0.00020846,2]
[368977359,1751419853016,-2132.58,0.00020846,2]
[368977360,1751419853026,-945.38,0.00020846,2]
[368977361,1751419853035,-460.0,0.00020846,2]
[368977362,1751419853045,-691.48,0.00020846,2]
[368977363,1751419853054,-460.0,0.00020846,2]
[368977364,1751419853063,-584.87,0.00020846,2]
[368977365,1751419853073,-460.0,0.00020846,2]
[368977366,1751419853083,-460.0,0.00020846,2]
[368977367,1751419853092,-1343.1,0.00020846,2]
[368977368,1751419853102,-600.16,0.00020846,2]
[368977369,1751419853111,-466.54,0.00020846,2]
[368977370,1751419853121,-460.0,0.00020846,2]
[368977371,1751419853131,-1350.1,0.00020846,2]
[368977372,1751419853142,-1312.86,0.00020846,2]
[368977373,1751419853151,-460.0,0.00020846,2]
[368977374,1751419853161,-460.0,0.00020846,2]
[368977375,1751419853171,-683.47,0.00020846,2]
[368977376,1751419853180,-531.79,0.00020846,2]
[368977377,1751419853190,-1091.09586195,0.00020934,4]
[368977378,1751419853199,-496.01,0.00021049,2]
[368977379,1751419853210,-460.0,0.0002112,2]
[368977380,1751419853221,-1243.39,0.0002112,2]
[368977381,1751419853231,-523.15,0.0002112,2]
[368977382,1751419853243,-1425.96,0.0002112,2]
[368977383,1751419853252,-460.0,0.0002112,2]
[368977384,1751419853263,-824.02,0.0002112,2]
[368977385,1751419853273,-816.83,0.0002112,2]
[368977386,1751419853282,-564.98,0.0002112,2]
[368977387,1751419853292,-2132.58,0.0002112,2]
[368977388,1751419853301,-945.38,0.0002112,2]
[368977389,1751419853311,-439.41,0.0002112,2]
[368977390,1751419853321,-691.48,0.0002112,2]
[368977391,1751419853331,-460.0,0.0002112,2]
[368977392,1751419853340,-584.87,0.0002112,2]
[368977393,1751419853351,-460.0,0.0002112,2]
[368977394,1751419853361,-460.0,0.0002112,2]
[368977395,1751419853371,-1343.1,0.0002112,2]
[368977396,1751419853382,-600.16,0.0002112,2]
[368977397,1751419853391,-466.54,0.0002112,2]
[368977398,1751419853402,-460.0,0.0002112,2]
[368977399,1751419853412,-1350.1,0.0002112,2]
[368977400,1751419853423,-1312.86,0.0002112,2]
[368977401,1751419853434,-460.0,0.0002112,2]
[368977402,1751419853446,-527.11770838,0.0002112,2]
[368977403,1751419853455,-683.47,0.0002112,2]
[368977404,1751419853466,-531.79,0.0002112,2]
[368977405,1751419853476,-1091.09586195,0.0002121,4]
[368977406,1751419853486,-664.89017176,0.00021269,2]
[368977407,1751419853496,-496.01,0.00021323,2]
[368977408,1751419853506,-505.69477543,0.00021388,2]
[368977409,1751419853516,-460.0,0.00021394,2]
[368977410,1751419853525,-1243.39,0.00021394,2]
[368977411,1751419853536,-523.15,0.00021394,2]
[368977412,1751419853545,-1425.96,0.00021394,2]
[368977413,1751419853555,-824.02,0.00021394,2]
[368977414,1751419853564,-816.83,0.00021394,2]
[368977415,1751419853574,-564.98,0.00021394,2]
[368977416,1751419853584,-2132.58,0.00021394,2]
[368977417,1751419853595,-945.38,0.00021394,2]
[368977418,1751419853614,-691.48,0.00021394,2]
[368977419,1751419853624,-460.0,0.00021394,2]
[368977420,1751419853633,-584.87,0.00021394,2]
[368977421,1751419853643,-262.85960313,0.00021394,2]
[368977422,1751419853652,-469.20878253,0.00021394,2]
[368977423,1751419853662,-1343.1,0.00021394,2]
[368977424,1751419853671,-600.16,0.00021394,2]
[368977425,1751419853681,-466.54,0.00021394,2]
[368977426,1751419853690,-460.0,0.00021394,2]
[368977427,1751419853700,-1350.1,0.00021394,2]
[368977428,1751419853709,-1312.86,0.00021394,2]
[368977429,1751419853719,-460.0,0.00021394,2]
[368977430,1751419853729,-683.47,0.00021394,2]
[368977431,1751419853738,-531.79,0.00021394,2]
[368977432,1751419853748,-1091.09586195,0.00021486,5]
[368977433,1751419853758,-150.0,0.00021503,2]
[368977434,1751419853767,-410.9722303,0.00021547,2]
[368977435,1751419853777,-496.01,0.00021597,2]
[368977436,1751419853787,-548.97,0.00021668,2]
[368977437,1751419853797,-1243.39,0.00021668,2]
[368977438,1751419853807,-523.15,0.00021668,2]
[368977439,1751419853816,-1425.96,0.00021668,2]
[368977440,1751419853826,-824.02,0.00021668,2]
[368977441,1751419853835,-816.83,0.00021668,2]
[368977442,1751419853845,-564.98,0.00021668,2]
[368977443,1751419853856,-2132.58,0.00021668,2]
[368977444,1751419853865,-945.38,0.00021668,2]
[368977445,1751419853875,-691.48,0.00021668,2]
[368977446,1751419853885,-220.58,0.00021668,2]
[368977447,1751419853895,-584.87,0.00021668,2]
[368977448,1751419853905,-1343.1,0.00021668,2]
[368977449,1751419853914,-600.16,0.00021668,2]
[368977450,1751419853923,-466.54,0.00021668,2]
[368977451,1751419853934,-460.0,0.00021668,2]
[368977452,1751419853943,-1350.1,0.00021668,2]
[368977453,1751419853953,-1312.86,0.00021668,2]
[368977454,1751419853964,-177.27827878,0.00021668,2]
[368977455,1751419853973,-683.47,0.00021668,2]
[368977456,1751419853983,-531.79,0.00021668,2]
[368977457,1751419853992,-1091.09586195,0.00021762,5]
[368977458,1751419854002,-496.01,0.00021871,2]
[368977459,1751419854012,-150.27123997,0.00021918,2]
[368977460,1751419854021,-1243.39,0.00021942,2]
[368977461,1751419854030,-523.15,0.00021942,2]
[368977462,1751419854040,-1425.96,0.00021942,2]
[368977463,1751419854050,-824.02,0.00021942,2]
[368977464,1751419854060,-816.83,0.00021942,2]
[368977465,1751419854070,-564.98,0.00021942,2]
[368977466,1751419854080,-2132.58,0.00021942,2]
[368977467,1751419854089,-945.38,0.00021942,2]
[368977468,1751419854098,-691.48,0.00021942,2]
[368977469,1751419854109,-584.87,0.00021942,2]
[368977470,1751419854119,-1343.1,0.00021942,2]
[368977471,1751419854128,-600.16,0.00021942,2]
[368977472,1751419854137,-466.54,0.00021942,2]
[368977473,1751419854146,-460.0,0.00021942,2]
[368977474,1751419854156,-1350.1,0.00021942,2]
[368977475,1751419854165,-1312.86,0.00021942,2]
[368977476,1751419854174,-683.47,0.00021942,2]
[368977477,1751419854183,-531.79,0.00021942,2]
[368977478,1751419854193,-215.0,0.00022031,2]
[368977479,1751419854205,-1091.09586195,0.00022038,6]
[368977480,1751419854215,-9641.88,0.000221,2]
[368977481,1751419854225,-5000.0,0.00022135,2]
[368977482,1751419854235,-207.4,0.00022135,2]
[368977483,1751419854245,-155.258224,0.00022135,2]
[368977484,1751419854255,-690.642,0.00022135,2]
[368977485,1751419854265,-500.0,0.00022135,2]
[368977486,1751419854274,-500.0,0.00022135,2]
[368977487,1751419854284,-500.0,0.00022135,2]
[368977488,1751419854295,-500.0,0.00022135,2]
[368977489,1751419854304,-500.0,0.00022135,2]
[368977490,1751419854315,-500.0,0.00022135,2]
[368977491,1751419854325,-500.0,0.00022135,2]
[368977492,1751419854335,-500.0,0.00022135,2]
[368977493,1751419854345,-500.0,0.00022135,2]
[368977494,1751419854357,-500.0,0.00022135,2]
[368977495,1751419854366,-500.0,0.00022135,2]
[368977496,1751419854377,-500.0,0.00022135,2]
[368977497,1751419854386,-500.0,0.00022135,2]
[368977498,1751419854395,-500.0,0.00022135,2]
[368977499,1751419854404,-500.0,0.00022135,2]
[368977500,1751419854414,-496.01,0.00022145,2]
[368977501,1751419854423,-716.195754,0.0002219,2]
[368977502,1751419854432,-3807.91,0.000222,7]
[368977503,1751419854442,-400.62,0.000222,7]
[368977504,1751419854451,-1243.39,0.00022216,2]
[368977505,1751419854461,-523.15,0.00022216,2]
[368977506,1751419854472,-1425.96,0.00022216,2]
[368977507,1751419854481,-824.02,0.00022216,2]
[368977508,1751419854491,-816.83,0.00022216,2]
[368977509,1751419854501,-564.98,0.00022216,2]
[368977510,1751419854510,-2132.58,0.00022216,2]
[368977511,1751419854521,-945.38,0.00022216,2]
[368977512,1751419854531,-691.48,0.00022216,2]
[368977513,1751419854540,-584.87,0.00022216,2]
[368977514,1751419854549,-1343.1,0.00022216,2]
[368977515,1751419854559,-600.16,0.00022216,2]
[368977516,1751419854569,-466.54,0.00022216,2]
[368977517,1751419854579,-460.0,0.00022216,2]
[368977518,1751419854589,-1350.1,0.00022216,2]
[368977519,1751419854600,-1312.86,0.00022216,2]
[368977520,1751419854613,-683.47,0.00022216,2]
[368977521,1751419854623,-531.79,0.00022216,2]
[368977522,1751419854632,-1553.02571943,0.00022227,2]
[368977523,1751419854643,-742.6949969,0.00022245,2]
[368977524,1751419854747,-770.17471178,0.000223,2]
[368977525,1751419854757,-1091.09586195,0.00022314,7]
[368977526,1751419854769,-798.67117612,0.00022355,2]
[368977527,1751419854779,-165.48870318,0.0002241,2]
[368977528,1751419854788,-496.01,0.00022419,2]
[368977529,1751419854798,-1243.39,0.0002249,2]
[368977530,1751419854807,-523.15,0.0002249,2]
[368977531,1751419854817,-1425.96,0.0002249,2]
[368977532,1751419854826,-824.02,0.0002249,2]
[368977533,1751419854836,-816.83,0.0002249,2]
[368977534,1751419854847,-564.98,0.0002249,2]
[368977535,1751419854856,-2132.58,0.0002249,2]
[368977536,1751419854867,-945.38,0.0002249,2]
[368977537,1751419854877,-691.48,0.0002249,2]
[368977538,1751419854886,-584.87,0.0002249,2]
[368977539,1751419854896,-1343.1,0.0002249,2]
[368977540,1751419854905,-600.16,0.0002249,2]
[368977541,1751419854914,-466.54,0.0002249,2]
[368977542,1751419854924,-460.0,0.0002249,2]
[368977543,1751419854936,-1350.1,0.0002249,2]
[368977544,1751419854947,-1312.86,0.0002249,2]
[368977545,1751419854957,-683.47,0.0002249,2]
[368977546,1751419854967,-531.79,0.0002249,2]
[368977547,1751419854976,-1091.09586195,0.0002259,7]
[368977548,1751419854986,-176.192718,0.00022603,2]
[368977549,1751419854995,-160.0,0.00022674,3]
[368977550,1751419855005,-5000.0,0.00022683,2]
[368977551,1751419855015,-496.01,0.00022693,2]
[368977552,1751419855025,-410.9722303,0.00022733,2]
[368977553,1751419855034,-1243.39,0.00022764,2]
[368977554,1751419855044,-523.15,0.00022764,2]
[368977555,1751419855054,-1425.96,0.00022764,2]
[368977556,1751419855063,-824.02,0.00022764,2]
[368977557,1751419855073,-816.83,0.00022764,2]
[368977558,1751419855083,-564.98,0.00022764,2]
[368977559,1751419855092,-2132.58,0.00022764,2]
[368977560,1751419855102,-945.38,0.00022764,2]
[368977561,1751419855112,-691.48,0.00022764,2]
[368977562,1751419855121,-584.87,0.00022764,2]
[368977563,1751419855130,-1343.1,0.00022764,2]
[368977564,1751419855140,-600.16,0.00022764,2]
[368977565,1751419855149,-466.54,0.00022764,2]
[368977566,1751419855159,-460.0,0.00022764,2]
[368977567,1751419855169,-1350.1,0.00022764,2]
[368977568,1751419855179,-1312.86,0.00022764,2]
[368977569,1751419855189,-683.47,0.00022764,2]
[368977570,1751419855199,-531.79,0.00022764,2]
[368977571,1751419855209,-1091.09586195,0.00022866,8]
[368977572,1751419855220,-496.01,0.00022967,2]
[368977573,1751419855231,-1243.39,0.00023038,2]
[368977574,1751419855240,-523.15,0.00023038,2]
[368977575,1751419855250,-1425.96,0.00023038,2]
[368977576,1751419855261,-824.02,0.00023038,2]
[368977577,1751419855271,-816.83,0.00023038,2]
[368977578,1751419855281,-564.98,0.00023038,2]
[368977579,1751419855291,-2132.58,0.00023038,2]
[368977580,1751419855300,-945.38,0.00023038,2]
[368977581,1751419855310,-691.48,0.00023038,2]
[368977582,1751419855322,-584.87,0.00023038,2]
[368977583,1751419855331,-1343.1,0.00023038,2]
[368977584,1751419855341,-600.16,0.00023038,2]
[368977585,1751419855351,-466.54,0.00023038,2]
[368977586,1751419855360,-460.0,0.00023038,2]
[368977587,1751419855372,-1350.1,0.00023038,2]
[368977588,1751419855381,-1312.86,0.00023038,2]
[368977589,1751419855390,-683.47,0.00023038,2]
[368977590,1751419855400,-531.79,0.00023038,2]
[368977591,1751419855409,-1091.09586195,0.00023141,8]
[368977592,1751419855419,-168.0,0.00023175,2]
[368977593,1751419855428,-5000.0,0.00023231,2]
[368977594,1751419855438,-496.01,0.00023241,2]
[368977595,1751419855447,-151.0,0.000233,9]
[368977596,1751419855457,-1243.49,0.00023312,2]
[368977597,1751419855466,-523.19,0.00023312,2]
[368977598,1751419855475,-1426.11977818,0.00023312,2]
[368977599,1751419855485,-824.19206962,0.00023312,2]
[368977600,1751419855494,-817.06,0.00023312,2]
[368977601,1751419855503,-564.99,0.00023312,2]
[368977602,1751419855513,-2132.63,0.00023312,2]
[368977603,1751419855522,-945.46,0.00023312,2]
[368977604,1751419855532,-691.58006635,0.00023312,2]
[368977605,1751419855542,-585.05,0.00023312,2]
[368977606,1751419855551,-1343.20440848,0.00023312,2]
[368977607,1751419855560,-600.37,0.00023312,2]
[368977608,1751419855570,-466.71798674,0.00023312,2]
[368977609,1751419855580,-170.38206586,0.00023312,2]
[368977610,1751419855589,-1350.12216586,0.00023312,2]
[368977611,1751419855603,-1312.95224182,0.00023312,2]
[368977612,1751419855614,-683.4885179,0.00023312,2]
[368977613,1751419855624,-531.90020721,0.00023312,2]
[368977614,1751419855634,-1091.09586195,0.00023417,9]
[368977615,1751419855644,-3000.0,0.00023448,3]
[368977616,1751419855654,-215.0738,0.00023504,2]
[368977617,1751419855663,-496.19,0.00023515,2]
[368977618,1751419855674,-9000.0,0.00023526,3]
[368977619,1751419855683,-837.20943635,0.0002353,3]
[368977620,1751419855693,-215.01728679,0.0002353,3]